bitfinex/quotes_BTCUSD_20240607
["timestamp","ask_amount","ask_price","bid_price","bid_amount"]
[1717728001974,2.72889266,70752.0,70751.0,0.00048302]
[1717728002635,2.87115934,70752.0,70751.0,0.00048302]
[1717728003069,2.39858945,70752.0,70751.0,0.00048302]
[1717728003285,2.71301068,70752.0,70751.0,0.00048302]
[1717728003547,2.84127293,70752.0,70751.0,0.00048302]
[1717728003777,2.85527293,70752.0,70751.0,0.00048302]
[1717728003983,2.86927293,70752.0,70751.0,0.00048302]
[1717728004409,2.86927293,70752.0,70751.0,0.00076541]
[1717728005463,2.8407536,70752.0,70751.0,0.00076541]
[1717728005886,2.8937536,70752.0,70751.0,0.00076541]
[1717728006344,2.01105876,70752.0,70751.0,0.00076541]
[1717728006562,2.47662633,70752.0,70751.0,0.00076541]
[1717728006775,2.84049222,70752.0,70751.0,0.00076541]
[1717728006992,2.93049222,70752.0,70751.0,0.00076541]
[1717728007209,2.81673252,70752.0,70751.0,0.00076541]
[1717728007435,2.18553243,70752.0,70751.0,0.00076541]
[1717728007657,2.81571497,70752.0,70751.0,0.00076541]
[1717728008077,2.80171497,70752.0,70751.0,0.00076541]
[1717728008285,2.81571497,70752.0,70751.0,0.00076541]
[1717728008811,2.80171497,70752.0,70751.0,0.00076541]
[1717728009060,2.81571497,70752.0,70751.0,0.00076541]
[1717728009484,2.80171497,70752.0,70751.0,0.00076541]
[1717728009722,2.78763595,70752.0,70751.0,0.00076541]
[1717728009954,2.80163595,70752.0,70751.0,0.00076541]
[1717728010219,2.81563595,70752.0,70751.0,0.00076541]
[1717728010678,2.81622594,70752.0,70751.0,0.00076541]
[1717728011767,2.72922594,70752.0,70751.0,0.00076541]
[1717728012025,2.72070979,70752.0,70751.0,0.00076541]
[1717728012698,2.72054634,70752.0,70751.0,0.00076541]
[1717728014436,3.16171635,70752.0,70751.0,0.00076541]
[1717728014867,2.96605916,70752.0,70751.0,0.00076541]
[1717728015306,2.84526787,70752.0,70751.0,0.00076541]
[1717728015527,3.22916524,70752.0,70751.0,0.00076541]
[1717728015955,3.21516524,70752.0,70751.0,0.00076541]
[1717728016433,3.21516524,70752.0,70741.0,0.004]
[1717728016434,0.93219861,70742.0,70741.0,0.004]
[1717728016650,1.35193085,70742.0,70741.0,0.004]
[1717728016877,1.77448308,70742.0,70741.0,0.004]
[1717728017117,2.05720008,70742.0,70741.0,0.004]
[1717728017336,2.46344864,70742.0,70741.0,0.004]
[1717728017554,2.47344864,70742.0,70741.0,0.004]
[1717728017772,2.49544864,70742.0,70741.0,0.004]
[1717728018227,2.4545501,70742.0,70741.0,0.004]
[1717728018447,2.4885501,70742.0,70741.0,0.004]
[1717728018628,2.6539501,70742.0,70741.0,0.004]
[1717728019226,2.6679501,70742.0,70741.0,0.004]
[1717728019800,2.6539501,70742.0,70741.0,0.004]
[1717728019983,2.6679501,70742.0,70741.0,0.004]
[1717728020370,2.70547461,70742.0,70741.0,0.004]
[1717728021873,3.01119161,70742.0,70741.0,0.004]
[1717728022965,3.01121687,70742.0,70741.0,0.004]
[1717728023604,2.98321687,70742.0,70741.0,0.004]
[1717728023813,2.98120418,70742.0,70741.0,0.004]
[1717728024067,2.9416038,70742.0,70741.0,0.004]
[1717728024313,2.9216038,70742.0,70741.0,0.004]
[1717728024511,2.9416038,70742.0,70741.0,0.004]
[1717728024715,2.64137929,70742.0,70741.0,0.004]
[1717728024923,2.61837929,70742.0,70741.0,0.004]
[1717728025132,2.63237929,70742.0,70741.0,0.004]
[1717728027705,2.65237929,70742.0,70741.0,0.004]
[1717728027916,2.64922035,70742.0,70741.0,0.004]
[1717728028329,2.78621461,70742.0,70741.0,0.004]
[1717728029606,2.85093822,70742.0,70741.0,0.004]
[1717728029744,2.87093822,70742.0,70741.0,0.004]
[1717728029945,2.81433822,70742.0,70741.0,0.004]
[1717728030393,2.81433822,70742.0,70741.0,0.00486]
[1717728030604,2.79433822,70742.0,70741.0,0.00486]
[1717728031202,2.78949212,70742.0,70741.0,0.00486]
[1717728031420,2.64437425,70742.0,70741.0,0.00486]
[1717728034530,2.60236503,70742.0,70741.0,0.00486]
[1717728034745,2.6604964,70742.0,70741.0,0.00486]
[1717728035526,2.63237279,70742.0,70741.0,0.00486]
[1717728035725,2.80561427,70742.0,70741.0,0.00486]
[1717728036686,2.77749066,70742.0,70741.0,0.00486]
[1717728037111,2.78561427,70742.0,70741.0,0.00486]
[1717728037553,2.77749066,70742.0,70741.0,0.00486]
[1717728037762,2.78561427,70742.0,70741.0,0.00486]
[1717728037986,2.88291427,70742.0,70741.0,0.00486]
[1717728038234,3.04241427,70742.0,70741.0,0.00486]
[1717728038450,3.10318839,70742.0,70741.0,0.00486]
[1717728040108,3.22618839,70742.0,70741.0,0.00486]
[1717728040329,3.40469161,70742.0,70741.0,0.00486]
[1717728040605,3.66535492,70742.0,70741.0,0.00486]
[1717728041338,3.73235492,70742.0,70741.0,0.00486]
[1717728041578,3.71835492,70742.0,70741.0,0.00486]
[1717728042218,3.93235492,70742.0,70741.0,0.00486]
[1717728042680,3.73235492,70742.0,70741.0,1e-08]
[1717728042898,0.93225861,70732.0,70731.0,0.01262]
[1717728043127,1.92913426,70732.0,70731.0,0.01262]
[1717728043356,1.70829103,70732.0,70731.0,0.01262]
[1717728043574,2.47733834,70732.0,70731.0,0.01262]
[1717728044052,2.45733834,70732.0,70731.0,0.01262]
[1717728044296,2.33969921,70732.0,70731.0,0.01262]
[1717728044731,2.27269921,70732.0,70731.0,0.01262]
[1717728044982,2.28669921,70732.0,70731.0,0.01262]
[1717728045451,2.27269921,70732.0,70731.0,0.01262]
[1717728045726,2.28623813,70732.0,70731.0,0.01262]
[1717728046234,2.30023813,70732.0,70731.0,0.01262]
[1717728047424,2.28023813,70732.0,70731.0,0.01262]
[1717728047648,2.1883595,70732.0,70731.0,0.01262]
[1717728047882,2.25625084,70732.0,70731.0,0.01262]
[1717728048108,2.29025084,70732.0,70731.0,0.01262]
[1717728048375,2.27625084,70732.0,70731.0,0.01262]
[1717728048836,2.26225084,70732.0,70731.0,0.01262]
[1717728049055,2.27625084,70732.0,70731.0,0.01262]
[1717728049286,2.25625084,70732.0,70731.0,0.01262]
[1717728049536,2.29025084,70732.0,70731.0,0.01262]
[1717728050447,2.27025084,70732.0,70731.0,0.01262]
[1717728051109,2.55300784,70732.0,70731.0,0.01262]
[1717728051757,2.27025084,70732.0,70731.0,0.01262]
[1717728052192,2.29025084,70732.0,70731.0,0.01262]
[1717728052419,2.54488423,70732.0,70731.0,0.01262]
[1717728052867,2.55300784,70732.0,70731.0,0.01262]
[1717728053331,2.54488423,70732.0,70731.0,0.01262]
[1717728053565,2.43994318,70732.0,70731.0,0.01262]
[1717728054451,1.94149264,70732.0,70731.0,0.01262]
[1717728054956,2.24424964,70732.0,70731.0,0.01262]
[1717728055167,2.26958875,70732.0,70731.0,0.01262]
[1717728055385,2.47952763,70732.0,70731.0,0.01262]
[1717728055614,2.45952763,70732.0,70731.0,0.01262]
[1717728055827,2.47952763,70732.0,70731.0,0.01262]
[1717728057228,2.45952763,70732.0,70731.0,0.01262]
[1717728057661,2.4763217,70732.0,70731.0,0.01262]
[1717728058292,2.40843036,70732.0,70731.0,0.01262]
[1717728058509,2.48154023,70732.0,70731.0,0.01262]
[1717728059581,2.47341662,70732.0,70731.0,0.01262]
[1717728059758,2.45620112,70732.0,70731.0,0.01262]
[1717728060658,2.17344412,70732.0,70731.0,0.01262]
[1717728061115,2.02832625,70732.0,70731.0,0.01262]
[1717728061549,2.31108325,70732.0,70731.0,0.01262]
[1717728062016,2.02832625,70732.0,70731.0,0.01262]
[1717728062268,1.93803677,70732.0,70731.0,0.01262]
[1717728062507,1.71271362,70732.0,70731.0,0.25152]
[1717728062727,1.64772736,70732.0,70731.0,0.25152]
[1717728062906,1.63960375,70732.0,70731.0,0.25152]
[1717728063389,1.62560375,70732.0,70731.0,0.25152]
[1717728064284,1.61160375,70732.0,70731.0,0.25152]
[1717728064463,1.68683937,70732.0,70731.0,0.25152]
[1717728064726,1.70896298,70732.0,70731.0,0.25152]
[1717728065778,1.72296298,70732.0,70731.0,0.25152]
[1717728066222,1.71483937,70732.0,70731.0,0.25152]
[1717728066454,1.87395724,70732.0,70731.0,0.25152]
[1717728066678,1.87477515,70732.0,70731.0,0.25152]
[1717728066898,1.87477515,70732.0,70731.0,0.25170851]
[1717728067116,1.72965728,70732.0,70731.0,0.25170851]
[1717728067573,1.65360375,70732.0,70731.0,0.25170851]
[1717728067796,1.73123124,70732.0,70731.0,0.25170851]
[1717728069699,1.63123124,70732.0,70731.0,0.25170851]
[1717728069909,0.94847424,70732.0,70731.0,0.3305849]
[1717728070344,0.87084675,70732.0,70731.0,0.3305849]
[1717728071407,0.97618663,70732.0,70731.0,0.3305849]
[1717728072800,0.97618663,70732.0,70731.0,0.31870851]
[1717728073010,1.35894363,70732.0,70731.0,0.01280851]
[1717728073219,1.14269125,70732.0,70731.0,0.01280851]
[1717728073441,1.29129302,70732.0,70731.0,0.01280851]
[1717728073672,1.36824787,70732.0,70731.0,0.01280851]
[1717728074308,1.29129302,70732.0,70731.0,0.01280851]
[1717728075846,1.43387297,70732.0,70731.0,0.01280851]
[1717728076273,1.29129302,70732.0,70731.0,0.01280851]
[1717728082258,1.29941663,70732.0,70731.0,0.01280852]
[1717728082468,1.36582293,70732.0,70731.0,0.01280852]
[1717728082723,1.29129302,70732.0,70731.0,0.01280852]
[1717728086686,1.3652972,70732.0,70731.0,0.01280852]
[1717728086898,1.29036653,70732.0,70731.0,0.01280852]
[1717728087103,1.36529525,70732.0,70731.0,0.01280852]
[1717728088172,1.51041312,70732.0,70731.0,0.01280852]
[1717728088388,1.36529525,70732.0,70731.0,0.01280852]
[1717728089029,1.37341886,70732.0,70731.0,0.01280852]
[1717728089461,1.36529525,70732.0,70731.0,0.01280852]
[1717728090535,1.34835907,70732.0,70731.0,0.01280852]
[1717728091601,1.24835907,70732.0,70731.0,0.07980852]
[1717728091820,1.24835907,70732.0,70731.0,0.24850852]
[1717728092043,1.2486642,70732.0,70731.0,0.24850852]
[1717728094075,1.17363483,70732.0,70731.0,0.24850852]
[1717728094520,1.17363483,70732.0,70731.0,0.24850853]
[1717728094939,1.24775632,70732.0,70731.0,0.08880853]
[1717728095150,1.35587993,70732.0,70731.0,0.01280853]
[1717728095375,2.26453693,70732.0,70731.0,0.01280853]
[1717728098177,2.26406934,70732.0,70731.0,0.01280853]
[1717728099052,2.26367962,70732.0,70731.0,0.01280853]
[1717728099496,2.40879749,70732.0,70731.0,0.01280853]
[1717728100446,2.36742717,70732.0,70731.0,0.01280853]
[1717728100657,2.40902891,70732.0,70731.0,0.01280853]
[1717728101306,2.4009053,70732.0,70731.0,0.01280853]
[1717728101525,2.1363871,70732.0,70731.0,0.01280853]
[1717728101734,2.25590714,70732.0,70731.0,0.01280853]
[1717728102383,2.26403075,70732.0,70731.0,0.01280853]
[1717728102591,2.25590714,70732.0,70731.0,0.01280853]
[1717728102802,2.26403075,70732.0,70731.0,0.01280853]
[1717728103209,2.39046517,70732.0,70731.0,0.01280853]
[1717728103421,2.53558304,70732.0,70731.0,0.01280853]
[1717728104394,2.87684764,70732.0,70731.0,0.01280853]
[1717728105448,2.75041322,70732.0,70731.0,0.01280853]
[1717728106020,2.61874763,70732.0,70731.0,0.01280853]
[1717728106233,2.73967431,70732.0,70731.0,0.01280853]
[1717728111562,2.73955727,70732.0,70731.0,0.01280853]
[1717728112080,2.12553115,70732.0,70731.0,0.01280853]
[1717728112289,2.73657267,70732.0,70731.0,0.01280853]
[1717728112496,2.45381567,70732.0,70731.0,0.01280853]
[1717728113999,1.84277415,70732.0,70731.0,0.01280853]
[1717728114203,2.45499922,70732.0,70731.0,0.01280853]
[1717728115374,2.45504171,70732.0,70731.0,0.01280853]
[1717728118038,2.50302153,70732.0,70731.0,0.01280853]
[1717728123434,2.51202153,70732.0,70731.0,0.01280853]
[1717728124291,2.65449483,70732.0,70731.0,0.01280853]
[1717728124533,0.14952161,70722.0,70721.0,0.11213853]
[1717728124744,0.14141,70716.0,70713.0,0.22569573]
[1717728124945,0.50089173,70715.0,70713.0,0.22569573]
[1717728125176,0.22884397,70715.0,70713.0,0.22569573]
[1717728125849,0.06330865,70714.0,70713.0,0.22569573]
[1717728126056,0.20772758,70714.0,70713.0,0.29269573]
[1717728126492,0.20772758,70714.0,70713.0,0.29369573]
[1717728127137,0.20772758,70714.0,70713.0,0.22669573]
[1717728127349,0.20772758,70714.0,70713.0,0.29369573]
[1717728127559,0.20772758,70714.0,70713.0,0.51469573]
[1717728127771,0.20872758,70714.0,70713.0,0.51469573]
[1717728128651,0.20872758,70714.0,70713.0,0.51369573]
[1717728128871,0.14541893,70714.0,70713.0,0.51369573]
[1717728129074,0.14641893,70714.0,70713.0,0.51469573]
[1717728129514,0.14641893,70714.0,70713.0,0.52657212]
[1717728129734,0.14641893,70714.0,70713.0,0.51469573]
[1717728130146,0.14541893,70714.0,70713.0,0.51369573]
[1717728130352,0.14441893,70714.0,70713.0,0.51469573]
[1717728130598,0.14441893,70714.0,70713.0,0.44769573]
[1717728130832,0.14441893,70714.0,70713.0,0.51469573]
[1717728131279,0.14441893,70714.0,70713.0,0.52657212]
[1717728131488,0.14441893,70714.0,70713.0,0.45957212]
[1717728131939,0.14441893,70714.0,70713.0,0.52657212]
[1717728132787,0.14441893,70714.0,70713.0,0.51469573]
[1717728133855,0.18660366,70714.0,70713.0,0.51469573]
[1717728134671,0.19060366,70714.0,70713.0,0.51469573]
[1717728135087,0.32801766,70714.0,70713.0,0.43189573]
[1717728135282,0.32801766,70714.0,70713.0,0.43089573]
[1717728135487,0.32901766,70714.0,70713.0,0.43089573]
[1717728135701,0.33101766,70714.0,70713.0,0.43089573]
[1717728136145,0.32901766,70714.0,70713.0,0.43089573]
[1717728136411,0.32901766,70714.0,70713.0,0.43189573]
[1717728137480,0.32901766,70714.0,70713.0,0.49889573]
[1717728137896,0.32871373,70714.0,70713.0,0.49889573]
[1717728138134,0.32870886,70714.0,70713.0,0.49889573]
[1717728138338,0.32870886,70714.0,70713.0,0.43189573]
[1717728138550,0.32870886,70714.0,70713.0,0.49889573]
[1717728138761,0.286529,70714.0,70713.0,0.49889573]
[1717728140987,0.28045534,70714.0,70713.0,0.49889573]
[1717728141253,0.28045534,70714.0,70713.0,0.43189573]
[1717728142354,0.58425216,70714.0,70713.0,0.22669573]
[1717728142564,0.51545534,70714.0,70713.0,0.22669573]
[1717728143541,0.35755534,70714.0,70713.0,0.22669573]
[1717728143801,0.35655534,70714.0,70713.0,0.22569573]
[1717728143994,0.36855534,70714.0,70713.0,0.22569573]
[1717728144200,0.38255534,70714.0,70713.0,0.22569573]
[1717728144415,0.36855534,70714.0,70713.0,0.22569573]
[1717728144623,0.37667895,70714.0,70713.0,0.22569573]
[1717728144923,0.39067895,70714.0,70713.0,0.22569573]
[1717728145153,0.37667895,70714.0,70713.0,0.22569573]
[1717728145376,0.47007577,70714.0,70713.0,0.22569573]
[1717728145601,0.47207577,70714.0,70713.0,0.22569573]
[1717728145832,0.48507577,70714.0,70713.0,0.22569573]
[1717728146369,0.47207577,70714.0,70713.0,0.22569573]
[1717728146583,0.48407577,70714.0,70713.0,0.22569573]
[1717728146788,0.51170688,70714.0,70713.0,0.22569573]
[1717728147021,0.78798423,70714.0,70713.0,0.22569573]
[1717728147252,0.78998423,70714.0,70713.0,0.22569573]
[1717728147457,1.00129542,70714.0,70713.0,0.22569573]
[1717728147658,1.01429542,70714.0,70713.0,0.22569573]
[1717728147881,1.00029542,70714.0,70713.0,0.22569573]
[1717728148320,0.90887376,70714.0,70713.0,0.22569573]
[1717728149397,0.89587376,70714.0,70713.0,0.22569573]
[1717728149605,0.89807,70714.0,70713.0,0.22569573]
[1717728149846,1.04318787,70714.0,70713.0,0.22569573]
[1717728150493,1.33801687,70714.0,70713.0,0.22569573]
[1717728151296,1.44336591,70714.0,70713.0,0.22569573]
[1717728152336,1.33801687,70714.0,70713.0,0.22569573]
[1717728152547,0.97126796,70714.0,70713.0,0.22569573]
[1717728152695,0.97939157,70714.0,70713.0,0.22569573]
[1717728152901,1.05454683,70714.0,70713.0,0.22569573]
[1717728153179,1.05454683,70714.0,70670.0,0.00862]
[1717728153384,0.1,70703.0,70696.0,0.57481845]
[1717728153621,0.14441893,70702.0,70696.0,0.141449]
[1717728153834,0.14441893,70702.0,70701.0,0.067]
[1717728156222,0.14441893,70702.0,70701.0,0.1816]
[1717728156640,0.14441893,70702.0,70701.0,0.1826]
[1717728157051,0.14441893,70702.0,70701.0,0.1156]
[1717728157234,0.14441893,70702.0,70701.0,0.1826]
[1717728158614,0.14441893,70702.0,70701.0,0.18346]
[1717728158816,0.14441893,70702.0,70701.0,0.11646]
[1717728159036,0.14441893,70702.0,70701.0,0.18346]
[1717728159252,0.14441893,70702.0,70701.0,0.11646]
[1717728159456,0.14441893,70702.0,70701.0,0.18346]
[1717728170335,0.14441893,70702.0,70701.0,0.11646]
[1717728170545,0.14441893,70702.0,70701.0,0.18346]
[1717728171387,0.14441893,70702.0,70701.0,0.11646]
[1717728171596,0.14441893,70702.0,70701.0,0.18346]
[1717728173320,0.18358976,70711.0,70701.0,0.06886]
[1717728173321,0.1,70707.0,70701.0,0.06886]
[1717728173526,0.14441893,70706.0,70702.0,0.12025655]
[1717728173752,0.14441893,70706.0,70705.0,0.1816]
[1717728173995,0.1,70712.0,70706.0,0.1146]
[1717728174237,0.14441893,70711.0,70710.0,0.067]
[1717728174481,0.14441893,70711.0,70710.0,0.1816]
[1717728175309,0.14441893,70711.0,70710.0,0.1146]
[1717728175529,0.14441893,70711.0,70710.0,0.1816]
[1717728176147,0.14441893,70711.0,70710.0,0.1826]
[1717728176358,0.14441893,70711.0,70710.0,0.324022]
[1717728176986,0.14441893,70711.0,70710.0,0.257022]
[1717728177197,0.14441893,70711.0,70710.0,0.323022]
[1717728177393,0.14441893,70711.0,70710.0,0.327022]
[1717728177610,0.14441893,70711.0,70710.0,0.330022]
[1717728178018,0.000946,70714.0,70711.0,0.1146]
[1717728178236,0.000946,70714.0,70713.0,0.323016]
[1717728179873,0.000946,70714.0,70713.0,0.325016]
[1717728180282,0.14536493,70714.0,70713.0,0.325016]
[1717728180496,0.000946,70714.0,70713.0,0.328016]
[1717728181614,0.000946,70714.0,70713.0,0.476916]
[1717728182719,0.000946,70714.0,70713.0,0.471916]
[1717728182931,0.001946,70714.0,70713.0,0.477916]
[1717728183150,0.002946,70714.0,70713.0,0.479916]
[1717728184446,0.002946,70714.0,70713.0,0.762749]
[1717728185516,0.001946,70714.0,70713.0,0.760749]
[1717728185959,0.002946,70714.0,70713.0,0.767749]
[1717728186168,0.001946,70714.0,70713.0,0.761749]
[1717728186379,0.001946,70714.0,70713.0,0.754749]
[1717728186380,0.000946,70714.0,70713.0,0.754749]
[1717728186619,0.004,70729.0,70718.0,0.1489]
[1717728186829,0.004,70729.0,70721.0,0.1146]
[1717728186830,0.14441893,70728.0,70721.0,0.1146]
[1717728187099,0.14441893,70728.0,70727.0,0.067]
[1717728188289,0.14441893,70728.0,70727.0,0.208388]
[1717728188488,0.004,70729.0,70728.0,0.141386]
[1717728188692,0.14841893,70729.0,70728.0,0.141386]
[1717728188975,0.16313013,70746.0,70740.0,0.141362]
[1717728189188,0.14536493,70741.0,70740.0,0.255962]
[1717728189412,0.14536493,70741.0,70740.0,0.754587]
[1717728189413,0.000946,70741.0,70740.0,0.754587]
[1717728190469,0.001946,70741.0,70740.0,0.761587]
[1717728190685,0.000946,70741.0,70740.0,0.754587]
[1717728190904,0.001946,70741.0,70740.0,0.761587]
[1717728191108,0.002946,70741.0,70740.0,0.775587]
[1717728192101,0.001946,70741.0,70740.0,0.768587]
[1717728192311,0.001946,70741.0,70740.0,0.754587]
[1717728192487,0.001946,70741.0,70740.0,0.768587]
[1717728192488,0.000946,70741.0,70740.0,0.768587]
[1717728192696,0.000946,70741.0,70740.0,0.667987]
[1717728192901,0.000946,70741.0,70740.0,0.318262]
[1717728193097,0.000946,70741.0,70740.0,0.385262]
[1717728193557,0.000946,70741.0,70740.0,0.371262]
[1717728194196,0.000946,70741.0,70740.0,0.366262]
[1717728194417,0.000946,70741.0,70740.0,0.375262]
[1717728201539,0.000946,70741.0,70740.0,0.657987]
[1717728207088,0.000946,70741.0,70740.0,0.590987]
[1717728207240,0.000946,70741.0,70740.0,0.657987]
[1717728207660,0.07317424,70741.0,70740.0,0.657987]
[1717728208283,0.07317424,70741.0,70740.0,0.65830702]
[1717728209973,0.07317424,70741.0,70740.0,0.59130702]
[1717728210180,0.15057424,70741.0,70740.0,0.59130702]
[1717728210383,0.15057424,70741.0,70740.0,0.65830702]
[1717728212579,0.07317424,70741.0,70740.0,0.65830702]
[1717728213189,0.000946,70741.0,70740.0,0.65830702]
[1717728221946,0.000946,70741.0,70740.0,0.64930702]
[1717728222210,0.000946,70741.0,70740.0,0.66330702]
[1717728223508,0.000946,70741.0,70740.0,0.65430702]
[1717728223724,0.000946,70741.0,70740.0,0.654307]
[1717728223935,0.000946,70741.0,70740.0,0.668307]
[1717728226131,0.077646,70741.0,70740.0,0.668307]
[1717728227778,0.077646,70741.0,70740.0,0.66830699]
[1717728229728,0.233246,70741.0,70740.0,0.60130699]
[1717728229897,0.233246,70741.0,70740.0,0.66830699]
[1717728234161,0.233246,70741.0,70740.0,0.23668199]
[1717728234371,0.37766493,70741.0,70740.0,0.23668199]
[1717728245800,0.37766493,70741.0,70740.0,0.16968199]
[1717728246004,0.37766493,70741.0,70740.0,0.23668199]
[1717728248127,0.37766493,70741.0,70740.0,0.16968199]
[1717728248327,0.37766493,70741.0,70740.0,0.23668199]
[1717728256720,0.37766493,70741.0,70740.0,0.22668199]
[1717728259788,0.37766493,70741.0,70740.0,0.22668198]
[1717728260569,0.22206493,70741.0,70740.0,0.22668198]
[1717728262519,0.14536493,70741.0,70740.0,0.22668198]
[1717728264859,0.14536493,70741.0,70740.0,0.15968198]
[1717728265075,0.14536493,70741.0,70740.0,0.22668198]
[1717728265076,0.21759317,70741.0,70740.0,0.22668198]
[1717728265289,0.000946,70741.0,70740.0,0.50940698]
[1717728265499,0.07317424,70741.0,70740.0,0.50940698]
[1717728270506,0.000946,70741.0,70740.0,0.65830698]
[1717728270872,0.07317424,70741.0,70740.0,0.65830698]
[1717728275473,0.07317424,70741.0,70740.0,0.79490286]
[1717728276797,0.07317424,70741.0,70740.0,0.63510386]
[1717728277472,0.07317424,70741.0,70740.0,0.75446998]
[1717728279791,0.07317424,70741.0,70740.0,0.57286998]
[1717728279997,0.07317424,70741.0,70740.0,0.63986998]
[1717728281296,0.000946,70741.0,70740.0,0.63986998]
[1717728285976,0.000946,70741.0,70740.0,0.75446998]
[1717728287221,0.000946,70741.0,70740.0,0.75532998]
[1717728293473,0.000946,70741.0,70740.0,0.64072998]
[1717728301362,0.000946,70741.0,70740.0,0.92345498]
[1717728301599,0.004,70749.0,70748.0,0.572939]
[1717728301819,0.004,70749.0,70748.0,0.762939]
[1717728302282,0.0821,70749.0,70748.0,0.762939]
[1717728302733,0.2369,70749.0,70748.0,0.672939]
[1717728302980,0.2369,70749.0,70748.0,0.743939]
[1717728303213,0.2379,70749.0,70748.0,0.749939]
[1717728307496,0.23759622,70749.0,70748.0,0.749939]
[1717728311871,0.23759622,70749.0,70748.0,0.501039]
[1717728312084,0.23759622,70749.0,70748.0,0.151346]
[1717728312291,0.23759622,70749.0,70748.0,0.218346]
[1717728312918,0.23659622,70749.0,70748.0,0.208346]
[1717728313392,0.23659622,70749.0,70748.0,0.211346]
[1717728313609,0.23659622,70749.0,70748.0,0.213346]
[1717728314749,0.23659622,70749.0,70748.0,0.210346]
[1717728315175,0.23759622,70749.0,70748.0,0.221346]
[1717728315594,0.38301515,70749.0,70748.0,0.233346]
[1717728315813,0.38301515,70749.0,70748.0,0.220346]
[1717728315951,0.38101515,70749.0,70748.0,0.208346]
[1717728316160,0.38201515,70749.0,70748.0,0.217346]
[1717728316364,0.38201515,70749.0,70748.0,0.225346]
[1717728316365,0.38301515,70749.0,70748.0,0.225346]
[1717728319076,0.38301515,70749.0,70748.0,0.158346]
[1717728319289,0.38301515,70749.0,70748.0,0.159206]
[1717728319529,0.38301515,70749.0,70748.0,0.226206]
[1717728320783,0.60501515,70749.0,70748.0,0.159206]
[1717728321049,0.60501515,70749.0,70748.0,0.01786]
[1717728321232,0.60501515,70749.0,70748.0,0.08486]
[1717728321632,0.60501515,70749.0,70748.0,0.01786]
[1717728321902,0.60501515,70749.0,70748.0,0.08486]
[1717728322461,0.60401515,70749.0,70748.0,0.00986]
[1717728322663,0.60301515,70749.0,70748.0,0.06786]
[1717728322868,0.60401515,70749.0,70748.0,0.07886]
[1717728323031,0.60401515,70749.0,70748.0,0.01186]
[1717728323246,0.60401515,70749.0,70748.0,0.06786]
[1717728323850,0.60401515,70749.0,70748.0,0.00386]
[1717728324351,0.60401515,70749.0,70748.0,0.07086]
[1717728325205,0.60401515,70749.0,70748.0,0.06786]
[1717728325414,0.60401515,70749.0,70748.0,0.07186]
[1717728325623,0.60301515,70749.0,70748.0,0.06986]
[1717728326064,0.60301515,70749.0,70748.0,0.07286]
[1717728327080,0.60273247,70749.0,70748.0,0.07286]
[1717728327300,0.60273247,70749.0,70748.0,0.0730737]
[1717728332450,0.60273247,70749.0,70748.0,0.0060737]
[1717728332656,0.60273247,70749.0,70748.0,0.0730737]
[1717728333756,0.84407647,70749.0,70748.0,0.0060737]
[1717728334875,0.90736875,70749.0,70748.0,0.0040737]
[1717728335316,0.84407647,70749.0,70748.0,0.0050737]
[1717728335746,0.84407647,70749.0,70748.0,0.0040737]
[1717728336211,0.84607647,70749.0,70748.0,0.0040737]
[1717728336427,0.88824887,70749.0,70748.0,0.0010737]
[1717728336656,0.84607647,70749.0,70748.0,0.0010737]
[1717728336889,0.84607647,70749.0,70748.0,0.0020737]
[1717728337104,0.84607647,70749.0,70748.0,0.0680737]
[1717728337600,0.84707647,70749.0,70748.0,0.0680737]
[1717728338551,0.8892386,70749.0,70748.0,0.0680737]
[1717728338831,0.96075823,70749.0,70748.0,0.0680737]
[1717728339305,0.8892386,70749.0,70748.0,0.0680737]
[1717728339517,0.84707647,70749.0,70748.0,0.0680737]
[1717728340381,0.8892453,70749.0,70748.0,0.0680737]
[1717728341033,1.1719343,70749.0,70748.0,0.0010737]
[1717728341252,1.33813658,70749.0,70748.0,0.0010737]
[1717728341468,1.91292653,70749.0,70748.0,0.0010737]
[1717728341910,1.91092653,70749.0,70748.0,0.0010737]
[1717728342649,1.91992653,70749.0,70748.0,0.0020737]
[1717728342869,1.91892653,70749.0,70748.0,0.0020737]
[1717728343314,1.61576317,70749.0,70748.0,0.0030737]
[1717728343543,1.62476317,70749.0,70748.0,0.0030737]
[1717728344023,1.62477109,70749.0,70748.0,0.0030737]
[1717728344236,1.6879914,70749.0,70748.0,0.0030737]
[1717728344926,1.69798908,70749.0,70748.0,0.0030737]
[1717728345176,1.68798908,70749.0,70748.0,0.0030737]
[1717728345401,1.54286691,70749.0,70748.0,0.0030737]
[1717728346589,1.47965322,70749.0,70748.0,0.0030737]
[1717728347081,1.56392791,70749.0,70748.0,0.0030737]
[1717728347284,1.86440292,70749.0,70748.0,0.0030737]
[1717728347716,2.00952079,70749.0,70748.0,0.0030737]
[1717728348335,2.00953255,70749.0,70748.0,0.0030737]
[1717728349208,1.86441468,70749.0,70748.0,0.0030737]
[1717728350508,1.43811664,70749.0,70748.0,0.0030737]
[1717728350725,1.86506534,70749.0,70748.0,0.0030737]
[1717728351358,1.54312439,70749.0,70748.0,0.0030737]
[1717728351773,1.54311197,70749.0,70748.0,0.0030737]
[1717728352189,1.54405797,70749.0,70748.0,0.0030737]
[1717728352396,1.48085641,70749.0,70748.0,0.0030737]
[1717728353496,1.78285908,70749.0,70748.0,0.0030737]
[1717728354208,1.78285154,70749.0,70748.0,0.0030737]
[1717728354642,1.867122,70749.0,70748.0,0.0030737]
[1717728355495,1.78285154,70749.0,70748.0,0.0030737]
[1717728355949,1.867122,70749.0,70748.0,0.0030737]
[1717728356359,1.66618962,70749.0,70748.0,0.0030737]
[1717728356554,1.88818962,70749.0,70748.0,0.0030737]
[1717728356959,1.66618962,70749.0,70748.0,0.0030737]
[1717728357292,1.88818962,70749.0,70748.0,0.0030737]
[1717728357500,1.78285154,70749.0,70748.0,0.0030737]
[1717728357931,1.78085154,70749.0,70748.0,0.0030737]
[1717728358134,1.56085154,70749.0,70748.0,0.0030737]
[1717728359624,1.92796941,70749.0,70748.0,0.0030737]
[1717728359883,2.03338836,70749.0,70748.0,0.0030737]
[1717728360006,1.88827049,70749.0,70748.0,0.0030737]
[1717728360648,1.86720861,70749.0,70748.0,0.0030737]
[1717728361259,1.86718193,70749.0,70748.0,0.0030737]
[1717728362318,1.78282486,70749.0,70748.0,0.0030737]
[1717728363172,1.12533586,70749.0,70748.0,0.0700737]
[1717728363387,0.48622247,70749.0,70748.0,0.0700737]
[1717728363604,0.40812247,70749.0,70748.0,0.0700737]
[1717728365982,0.40812247,70749.0,70748.0,0.07007369]